[Event "Titled Tuesday Blitz April 26 Early 2022"]
[White "Mihailidis, Anastasios"]
[Black "Simonovic, Miroslav"]
[WhiteFideId "4205588"]
[BlackFideId "919152"]
[WhiteElo "2312"]
[BlackElo "2043"]
[Result "1-0"]
[Round "08"]
[TimeControl "180+1"]
[Date "2022.04.26"]
[WhiteClock "0:00:03"]
[BlackClock "0:00:01"]

1. e4 {[%clk 0:03:00]}  c5 {[%clk 0:03:00]} 2. Nf3 {[%clk 0:03:01]}  Nc6 {[%clk 0:03:00]} 3. c4 {[%clk 0:03:01]}  e5 {[%clk 0:03:00]} 4. Nc3 {[%clk 0:03:00]}  g6 {[%clk 0:02:59]} 5. g3 {[%clk 0:02:59]}  Bg7 {[%clk 0:03:00]} 6. Bg2 {[%clk 0:03:00]}  Nge7 {[%clk 0:03:00]} 7. O-O {[%clk 0:03:00]}  O-O {[%clk 0:03:01]} 8. d3 {[%clk 0:03:00]}  h6 {[%clk 0:03:00]} 9. Nd5 {[%clk 0:03:00]}  d6 {[%clk 0:03:00]} 10. Ne1 {[%clk 0:02:56]}  f5 {[%clk 0:02:58]} 11. f3 {[%clk 0:02:55]}  Nxd5 {[%clk 0:02:54]} 12. cxd5 {[%clk 0:02:54]}  Nd4 {[%clk 0:02:54]} 13. Nc2 {[%clk 0:02:52]}  Nxc2 {[%clk 0:02:43]} 14. Qxc2 {[%clk 0:02:53]}  f4 {[%clk 0:02:43]} 15. g4 {[%clk 0:02:48]}  h5 {[%clk 0:02:32]} 16. gxh5 {[%clk 0:02:46]}  gxh5 {[%clk 0:02:31]} 17. Kh1 {[%clk 0:02:46]}  h4 {[%clk 0:02:13]} 18. Rg1 {[%clk 0:02:34]}  h3 {[%clk 0:02:10]} 19. Bf1 {[%clk 0:02:33]}  Qh4 {[%clk 0:02:06]} 20. Qe2 {[%clk 0:02:24]}  Kf7 {[%clk 0:01:58]} 21. Bd2 {[%clk 0:02:21]}  Bf6 {[%clk 0:01:58]} 22. Be1 {[%clk 0:02:17]}  Qh5 {[%clk 0:01:58]} 23. Qf2 {[%clk 0:02:12]}  Bd7 {[%clk 0:01:57]} 24. Be2 {[%clk 0:02:08]}  Rg8 {[%clk 0:01:56]} 25. Bf1 {[%clk 0:01:49]}  Rxg1+ {[%clk 0:01:48]} 26. Kxg1 {[%clk 0:01:46]}  Rg8+ {[%clk 0:01:48]} 27. Kh1 {[%clk 0:01:46]}  Rh8 {[%clk 0:01:22]} 28. a3 {[%clk 0:01:34]}  Bh4 {[%clk 0:01:22]} 29. Qe2 {[%clk 0:01:33]}  Rg8 {[%clk 0:01:08]} 30. Bxh4 {[%clk 0:01:22]}  Qxh4 {[%clk 0:01:09]} 31. b4 {[%clk 0:01:14]}  b6 {[%clk 0:01:08]} 32. bxc5 {[%clk 0:01:13]}  bxc5 {[%clk 0:01:09]} 33. Rb1 {[%clk 0:01:12]}  Qd8 {[%clk 0:00:47]} 34. Rb7 {[%clk 0:01:05]}  Ke8 {[%clk 0:00:23]} 35. Qb2 {[%clk 0:00:53]}  Qg5 {[%clk 0:00:15]} 36. Qf2 {[%clk 0:00:38]}  Qd8 {[%clk 0:00:14]} 37. Rxa7 {[%clk 0:00:30]}  Qb8 {[%clk 0:00:14]} 38. Ra6 {[%clk 0:00:29]}  Kd8 {[%clk 0:00:14]} 39. Qh4+ {[%clk 0:00:27]}  Kc7 {[%clk 0:00:14]} 40. Qf2 {[%clk 0:00:22]}  Qb7 {[%clk 0:00:10]} 41. Ra5 {[%clk 0:00:18]}  Kb6 {[%clk 0:00:09]} 42. Qb2+ {[%clk 0:00:16]}  Kc7 {[%clk 0:00:09]} 43. Qc2 {[%clk 0:00:13]}  Rb8 {[%clk 0:00:06]} 44. Kg1 {[%clk 0:00:07]}  Qb1 {[%clk 0:00:06]} 45. Qxb1 {[%clk 0:00:07]}  Rxb1 {[%clk 0:00:07]} 46. Ra7+ {[%clk 0:00:07]}  Kc8 {[%clk 0:00:07]} 47. Ra8+ {[%clk 0:00:06]}  Kb7 {[%clk 0:00:07]} 48. Rd8 {[%clk 0:00:07]}  Bb5 {[%clk 0:00:07]} 49. Kf2 {[%clk 0:00:06]}  Rb2+ {[%clk 0:00:06]} 50. Kg1 {[%clk 0:00:06]}  Rb3 {[%clk 0:00:05]} 51. Rxd6 {[%clk 0:00:06]}  Rxa3 {[%clk 0:00:05]} 52. Rh6 {[%clk 0:00:04]}  Bxd3 {[%clk 0:00:05]} 53. Bxd3 {[%clk 0:00:04]}  Rxd3 {[%clk 0:00:05]} 54. Rxh3 {[%clk 0:00:04]}  c4 {[%clk 0:00:06]} 55. Kf2 {[%clk 0:00:04]}  c3 {[%clk 0:00:06]} 56. Ke2 {[%clk 0:00:04]}  Rd2+ {[%clk 0:00:06]} 57. Ke1 {[%clk 0:00:04]}  Kb6 {[%clk 0:00:06]} 58. Rh6+ {[%clk 0:00:02]}  Kb5 {[%clk 0:00:06]} 59. d6 {[%clk 0:00:02]}  Kb4 {[%clk 0:00:06]} 60. d7 {[%clk 0:00:01]}  Rxd7 {[%clk 0:00:05]} 61. Rb6+ {[%clk 0:00:02]}  Kc4 {[%clk 0:00:05]} 62. Rc6+ {[%clk 0:00:02]}  Kd4 {[%clk 0:00:04]} 63. Kd1 {[%clk 0:00:03]}  Ke3+ {[%clk 0:00:01]} 64. Kc2 {[%clk 0:00:04]}  Rd3 {[%clk 0:00:01]} 65. h4 {[%clk 0:00:03]} 1-0


[Site "https://www.chess.com"]

[Event "Titled Tuesday Blitz April 26 Early 2022"]
[White "Mirzoev, Azer"]
[Black "O`Gorman, Tom"]
[WhiteFideId "13400304"]
[BlackFideId "2508249"]
[WhiteElo "2525"]
[BlackElo "2247"]
[Result "1-0"]
[Round "08"]
[TimeControl "180+1"]
[Date "2022.04.26"]
[WhiteClock "0:00:10"]
[BlackClock "0:00:14"]

1. d4 {[%clk 0:03:00]}  Nf6 {[%clk 0:02:59]} 2. Nf3 {[%clk 0:02:58]}  g6 {[%clk 0:02:59]} 3. Bf4 {[%clk 0:02:59]}  Bg7 {[%clk 0:02:59]} 4. e3 {[%clk 0:02:59]}  O-O {[%clk 0:03:00]} 5. Be2 {[%clk 0:02:58]}  d6 {[%clk 0:03:00]} 6. h3 {[%clk 0:02:58]}  Nbd7 {[%clk 0:03:01]} 7. Bh2 {[%clk 0:02:58]}  c5 {[%clk 0:03:02]} 8. c3 {[%clk 0:02:56]}  b6 {[%clk 0:03:02]} 9. O-O {[%clk 0:02:55]}  Bb7 {[%clk 0:03:02]} 10. a4 {[%clk 0:02:55]}  a6 {[%clk 0:03:02]} 11. Nbd2 {[%clk 0:02:55]}  Ra7 {[%clk 0:03:02]} 12. Re1 {[%clk 0:02:50]}  Qa8 {[%clk 0:03:01]} 13. Bf1 {[%clk 0:02:45]}  Bc6 {[%clk 0:02:55]} 14. Qb1 {[%clk 0:02:35]}  Ne4 {[%clk 0:02:47]} 15. Qa2 {[%clk 0:02:21]}  Ndf6 {[%clk 0:02:36]} 16. Rec1 {[%clk 0:02:13]}  Qb7 {[%clk 0:02:31]} 17. b4 {[%clk 0:02:03]}  Rc8 {[%clk 0:02:21]} 18. Qb3 {[%clk 0:01:46]}  cxb4 {[%clk 0:02:15]} 19. cxb4 {[%clk 0:01:46]}  Bd5 {[%clk 0:02:10]} 20. Qb2 {[%clk 0:01:44]}  Qd7 {[%clk 0:01:59]} 21. Rxc8+ {[%clk 0:01:40]}  Qxc8 {[%clk 0:02:00]} 22. Rc1 {[%clk 0:01:40]}  Qd7 {[%clk 0:01:51]} 23. b5 {[%clk 0:01:35]}  a5 {[%clk 0:01:47]} 24. Qc2 {[%clk 0:01:32]}  h6 {[%clk 0:01:37]} 25. Qc8+ {[%clk 0:01:26]}  Kh7 {[%clk 0:01:33]} 26. Qxd7 {[%clk 0:01:19]}  Rxd7 {[%clk 0:01:30]} 27. Rc8 {[%clk 0:01:18]}  Nxd2 {[%clk 0:01:23]} 28. Nxd2 {[%clk 0:01:17]}  Ne4 {[%clk 0:01:24]} 29. Nc4 {[%clk 0:00:49]}  Bxc4 {[%clk 0:01:08]} 30. Bxc4 {[%clk 0:00:48]}  e6 {[%clk 0:01:09]} 31. Bd3 {[%clk 0:00:46]}  Nf6 {[%clk 0:00:53]} 32. Rc6 {[%clk 0:00:45]}  Nd5 {[%clk 0:00:52]} 33. Rxd6 {[%clk 0:00:37]}  Rxd6 {[%clk 0:00:42]} 34. Bxd6 {[%clk 0:00:36]}  Nc3 {[%clk 0:00:43]} 35. Bc2 {[%clk 0:00:36]}  Kg8 {[%clk 0:00:41]} 36. Bb3 {[%clk 0:00:34]}  Bf8 {[%clk 0:00:40]} 37. Bc7 {[%clk 0:00:34]}  Bb4 {[%clk 0:00:30]} 38. Bxb6 {[%clk 0:00:33]}  Kf8 {[%clk 0:00:30]} 39. Bc5+ {[%clk 0:00:31]}  Ke8 {[%clk 0:00:31]} 40. Kf1 {[%clk 0:00:26]}  Bxc5 {[%clk 0:00:25]} 41. dxc5 {[%clk 0:00:26]}  Ne4 {[%clk 0:00:26]} 42. Bc2 {[%clk 0:00:17]}  Nxc5 {[%clk 0:00:25]} 43. Ke2 {[%clk 0:00:17]}  Ke7 {[%clk 0:00:25]} 44. Kd2 {[%clk 0:00:16]}  Kd6 {[%clk 0:00:26]} 45. f4 {[%clk 0:00:16]}  f5 {[%clk 0:00:22]} 46. Kc3 {[%clk 0:00:15]}  h5 {[%clk 0:00:19]} 47. h4 {[%clk 0:00:14]}  Kd5 {[%clk 0:00:19]} 48. Bb3+ {[%clk 0:00:14]}  Kd6 {[%clk 0:00:19]} 49. Kc4 {[%clk 0:00:14]}  Ne4 {[%clk 0:00:19]} 50. Bc2 {[%clk 0:00:14]}  Nc5 {[%clk 0:00:18]} 51. Kd4 {[%clk 0:00:13]}  Nd7 {[%clk 0:00:19]} 52. Bb3 {[%clk 0:00:12]}  Nb6 {[%clk 0:00:19]} 53. e4 {[%clk 0:00:11]}  fxe4 {[%clk 0:00:18]} 54. Kxe4 {[%clk 0:00:11]}  Nd7 {[%clk 0:00:17]} 55. Bc2 {[%clk 0:00:11]}  Nc5+ {[%clk 0:00:17]} 56. Kd4 {[%clk 0:00:11]}  Nd7 {[%clk 0:00:11]} 57. Bxg6 {[%clk 0:00:11]}  Nb6 {[%clk 0:00:12]} 58. Bc2 {[%clk 0:00:11]}  Nd7 {[%clk 0:00:12]} 59. g3 {[%clk 0:00:11]}  Nb6 {[%clk 0:00:13]} 60. Bd1 {[%clk 0:00:11]}  Ke7 {[%clk 0:00:13]} 61. Kc5 {[%clk 0:00:10]}  Nd7+ {[%clk 0:00:13]} 62. Kc6 {[%clk 0:00:10]}  Nf6 {[%clk 0:00:14]} 63. b6 {[%clk 0:00:10]} 1-0


[Site "https://www.chess.com"]

[Event "Titled Tuesday Blitz April 26 Early 2022"]
[White "Moiseenko, Alexander"]
[Black "Djokic, Mihailo"]
[WhiteFideId "14102560"]
[BlackFideId "976440"]
[WhiteElo "2577"]
[BlackElo "2202"]
[Result "1-0"]
[Round "08"]
[TimeControl "180+1"]
[Date "2022.04.26"]
[WhiteClock "0:00:20"]
[BlackClock "0:00:53"]

1. d4 {[%clk 0:02:55]}  Nf6 {[%clk 0:02:59]} 2. Bg5 {[%clk 0:02:55]}  d5 {[%clk 0:02:58]} 3. e3 {[%clk 0:02:54]}  Nbd7 {[%clk 0:02:58]} 4. c4 {[%clk 0:02:51]}  e6 {[%clk 0:02:55]} 5. Nc3 {[%clk 0:02:50]}  h6 {[%clk 0:02:54]} 6. Bh4 {[%clk 0:02:49]}  g5 {[%clk 0:02:48]} 7. Bg3 {[%clk 0:02:48]}  Bb4 {[%clk 0:02:46]} 8. Ne2 {[%clk 0:02:27]}  Ne4 {[%clk 0:02:27]} 9. a3 {[%clk 0:02:26]}  Bxc3+ {[%clk 0:02:26]} 10. Nxc3 {[%clk 0:02:25]}  Nxc3 {[%clk 0:02:25]} 11. bxc3 {[%clk 0:02:25]}  Nf6 {[%clk 0:02:22]} 12. Bd3 {[%clk 0:02:19]}  dxc4 {[%clk 0:02:19]} 13. Bxc4 {[%clk 0:02:18]}  b6 {[%clk 0:02:19]} 14. Qf3 {[%clk 0:02:12]}  Nd5 {[%clk 0:02:12]} 15. e4 {[%clk 0:01:30]}  Ne7 {[%clk 0:02:11]} 16. h4 {[%clk 0:01:26]}  Ng6 {[%clk 0:02:02]} 17. hxg5 {[%clk 0:01:20]}  Qxg5 {[%clk 0:01:53]} 18. Rh5 {[%clk 0:01:06]}  Qe7 {[%clk 0:01:36]} 19. Kf1 {[%clk 0:00:42]}  Bb7 {[%clk 0:01:32]} 20. Bb5+ {[%clk 0:00:42]}  c6 {[%clk 0:01:32]} 21. Bd3 {[%clk 0:00:42]}  O-O-O {[%clk 0:01:26]} 22. a4 {[%clk 0:00:40]}  a6 {[%clk 0:01:13]} 23. Rb1 {[%clk 0:00:38]}  b5 {[%clk 0:01:12]} 24. axb5 {[%clk 0:00:37]}  cxb5 {[%clk 0:01:08]} 25. Rc5+ {[%clk 0:00:35]}  Kd7 {[%clk 0:01:02]} 26. Rc7+ {[%clk 0:00:34]}  Ke8 {[%clk 0:01:02]} 27. Rxe7+ {[%clk 0:00:34]}  Kxe7 {[%clk 0:01:03]} 28. Kg1 {[%clk 0:00:30]}  Rc8 {[%clk 0:01:00]} 29. d5 {[%clk 0:00:26]}  e5 {[%clk 0:00:54]} 30. d6+ {[%clk 0:00:24]}  Ke6 {[%clk 0:00:53]} 31. Qf5+ {[%clk 0:00:23]}  Kxd6 {[%clk 0:00:53]} 32. Qxf7 {[%clk 0:00:22]}  Rhg8 {[%clk 0:00:53]} 33. Qxb7 {[%clk 0:00:20]} 1-0


[Site "https://www.chess.com"]

[Event "Titled Tuesday Blitz April 26 Early 2022"]
[White "Murthy, Pappu"]
[Black "Polster, Christian"]
[WhiteFideId "2013401"]
[BlackFideId "12965081"]
[WhiteElo "1976"]
[BlackElo "2283"]
[Result "0-1"]
[Round "08"]
[TimeControl "180+1"]
[Date "2022.04.26"]
[WhiteClock "0:00:25"]
[BlackClock "0:00:22"]

1. c4 {[%clk 0:03:00]}  e6 {[%clk 0:02:55]} 2. e4 {[%clk 0:02:59]}  d5 {[%clk 0:02:53]} 3. exd5 {[%clk 0:02:58]}  exd5 {[%clk 0:02:54]} 4. cxd5 {[%clk 0:02:58]}  Nf6 {[%clk 0:02:54]} 5. Nc3 {[%clk 0:02:56]}  Nxd5 {[%clk 0:02:45]} 6. d4 {[%clk 0:02:45]}  Be7 {[%clk 0:02:28]} 7. Nf3 {[%clk 0:02:43]}  O-O {[%clk 0:02:27]} 8. Bc4 {[%clk 0:02:42]}  Nb6 {[%clk 0:02:24]} 9. Bb3 {[%clk 0:02:39]}  Nc6 {[%clk 0:02:14]} 10. h3 {[%clk 0:02:37]}  Bf6 {[%clk 0:02:10]} 11. Be3 {[%clk 0:02:21]}  Re8 {[%clk 0:01:47]} 12. O-O {[%clk 0:02:19]}  Na5 {[%clk 0:01:41]} 13. Bc2 {[%clk 0:02:09]}  Nac4 {[%clk 0:01:35]} 14. Qd3 {[%clk 0:02:01]}  g6 {[%clk 0:01:33]} 15. Rab1 {[%clk 0:01:58]}  Bf5 {[%clk 0:01:31]} 16. Qd1 {[%clk 0:01:55]}  Bxc2 {[%clk 0:01:10]} 17. Qxc2 {[%clk 0:01:54]}  Rxe3 {[%clk 0:01:07]} 18. fxe3 {[%clk 0:01:48]}  Nxe3 {[%clk 0:01:08]} 19. Qe4 {[%clk 0:01:43]}  Nxf1 {[%clk 0:01:09]} 20. Rxf1 {[%clk 0:01:43]}  c6 {[%clk 0:01:08]} 21. Ne5 {[%clk 0:01:40]}  Bxe5 {[%clk 0:00:55]} 22. dxe5 {[%clk 0:01:33]}  Qe7 {[%clk 0:00:51]} 23. Qf4 {[%clk 0:01:27]}  Re8 {[%clk 0:00:41]} 24. Ne4 {[%clk 0:01:21]}  Nd5 {[%clk 0:00:38]} 25. Nf6+ {[%clk 0:01:14]}  Nxf6 {[%clk 0:00:20]} 26. exf6 {[%clk 0:01:10]}  Qe3+ {[%clk 0:00:20]} 27. Qxe3 {[%clk 0:01:04]}  Rxe3 {[%clk 0:00:21]} 28. Rd1 {[%clk 0:01:04]}  Re8 {[%clk 0:00:21]} 29. Rd7 {[%clk 0:01:03]}  Rb8 {[%clk 0:00:21]} 30. b4 {[%clk 0:01:03]}  h5 {[%clk 0:00:21]} 31. g4 {[%clk 0:01:02]}  hxg4 {[%clk 0:00:21]} 32. hxg4 {[%clk 0:01:02]}  g5 {[%clk 0:00:21]} 33. Kg2 {[%clk 0:01:02]}  Kh7 {[%clk 0:00:20]} 34. Rxf7+ {[%clk 0:01:00]}  Kg6 {[%clk 0:00:21]} 35. Rd7 {[%clk 0:00:50]}  Kxf6 {[%clk 0:00:21]} 36. Kg3 {[%clk 0:00:51]}  Ke6 {[%clk 0:00:18]} 37. Rh7 {[%clk 0:00:48]}  Kd5 {[%clk 0:00:17]} 38. Rg7 {[%clk 0:00:46]}  Kc4 {[%clk 0:00:17]} 39. a3 {[%clk 0:00:42]}  Kb3 {[%clk 0:00:17]} 40. Rxg5 {[%clk 0:00:42]}  Ka4 {[%clk 0:00:17]} 41. b5 {[%clk 0:00:43]}  cxb5 {[%clk 0:00:17]} 42. Rg7 {[%clk 0:00:42]}  Kxa3 {[%clk 0:00:17]} 43. g5 {[%clk 0:00:37]}  b4 {[%clk 0:00:18]} 44. g6 {[%clk 0:00:37]}  b3 {[%clk 0:00:18]} 45. Rf7 {[%clk 0:00:33]}  b2 {[%clk 0:00:18]} 46. Rf1 {[%clk 0:00:30]}  Ka2 {[%clk 0:00:18]} 47. Kg4 {[%clk 0:00:24]}  b1=Q {[%clk 0:00:18]} 48. Rxb1 {[%clk 0:00:22]}  Kxb1 {[%clk 0:00:19]} 49. Kg5 {[%clk 0:00:22]}  a5 {[%clk 0:00:20]} 50. Kf6 {[%clk 0:00:21]}  a4 {[%clk 0:00:21]} 51. g7 {[%clk 0:00:22]}  a3 {[%clk 0:00:21]} 52. Ke7 {[%clk 0:00:23]}  a2 {[%clk 0:00:21]} 53. Kf7 {[%clk 0:00:24]}  a1=Q {[%clk 0:00:21]} 54. g8=Q {[%clk 0:00:25]}  Qa2+ {[%clk 0:00:21]} 55. Ke7 {[%clk 0:00:24]}  Qxg8 {[%clk 0:00:22]} 56. Kd7 {[%clk 0:00:24]}  Rd8+ {[%clk 0:00:22]} 57. Kc7 {[%clk 0:00:25]}  Qe8 {[%clk 0:00:22]} 58. Kb6 {[%clk 0:00:24]}  Qc6+ {[%clk 0:00:22]} 59. Ka7 {[%clk 0:00:25]}  Qa6# {[%clk 0:00:22]} 0-1


[Site "https://www.chess.com"]

[Event "Titled Tuesday Blitz April 26 Early 2022"]
[White "Oparin, Grigoriy"]
[Black "Papasimakopoulos, Alexandros"]
[WhiteFideId "24125890"]
[BlackFideId "4244125"]
[WhiteElo "2665"]
[BlackElo "2340"]
[Result "1/2-1/2"]
[Round "08"]
[TimeControl "180+1"]
[Date "2022.04.26"]
[WhiteClock "0:00:12"]
[BlackClock "0:00:11"]

1. Nf3 {[%clk 0:03:00]}  f5 {[%clk 0:02:37]} 2. d4 {[%clk 0:02:58]}  Nf6 {[%clk 0:02:37]} 3. c4 {[%clk 0:02:59]}  g6 {[%clk 0:02:37]} 4. g3 {[%clk 0:02:55]}  Bg7 {[%clk 0:02:37]} 5. Bg2 {[%clk 0:02:56]}  O-O {[%clk 0:02:37]} 6. O-O {[%clk 0:02:56]}  d6 {[%clk 0:02:38]} 7. Nc3 {[%clk 0:02:56]}  e6 {[%clk 0:02:38]} 8. b4 {[%clk 0:02:53]}  e5 {[%clk 0:02:36]} 9. dxe5 {[%clk 0:02:42]}  dxe5 {[%clk 0:02:36]} 10. Ba3 {[%clk 0:02:34]}  e4 {[%clk 0:02:28]} 11. Nd4 {[%clk 0:02:34]}  Nc6 {[%clk 0:02:20]} 12. Nxc6 {[%clk 0:02:29]}  bxc6 {[%clk 0:02:21]} 13. b5 {[%clk 0:02:30]}  Re8 {[%clk 0:02:18]} 14. bxc6 {[%clk 0:02:30]}  Be6 {[%clk 0:02:18]} 15. Qa4 {[%clk 0:02:27]}  Qd4 {[%clk 0:01:48]} 16. Nb5 {[%clk 0:01:25]}  Qb6 {[%clk 0:01:47]} 17. Rac1 {[%clk 0:01:21]}  Qxc6 {[%clk 0:01:45]} 18. Qa5 {[%clk 0:01:21]}  Qb6 {[%clk 0:01:40]} 19. Bb4 {[%clk 0:01:17]}  c5 {[%clk 0:01:34]} 20. Bd2 {[%clk 0:01:10]}  Rec8 {[%clk 0:01:24]} 21. Rfd1 {[%clk 0:01:07]}  Ng4 {[%clk 0:01:18]} 22. f3 {[%clk 0:00:55]}  Ne5 {[%clk 0:01:16]} 23. fxe4 {[%clk 0:00:48]}  Bxc4 {[%clk 0:01:04]} 24. Qxb6 {[%clk 0:00:44]}  axb6 {[%clk 0:01:04]} 25. Nd6 {[%clk 0:00:45]}  Bxe2 {[%clk 0:01:03]} 26. Nxc8 {[%clk 0:00:41]}  Bxd1 {[%clk 0:00:48]} 27. Nxb6 {[%clk 0:00:40]}  Ra6 {[%clk 0:00:49]} 28. Rxd1 {[%clk 0:00:38]}  Rxb6 {[%clk 0:00:48]} 29. exf5 {[%clk 0:00:38]}  gxf5 {[%clk 0:00:49]} 30. Bf4 {[%clk 0:00:31]}  Nf7 {[%clk 0:00:29]} 31. Bd5 {[%clk 0:00:26]}  Bd4+ {[%clk 0:00:28]} 32. Kg2 {[%clk 0:00:24]}  Kg7 {[%clk 0:00:26]} 33. Bb3 {[%clk 0:00:24]}  Kf6 {[%clk 0:00:21]} 34. Re1 {[%clk 0:00:23]}  Ne5 {[%clk 0:00:21]} 35. Re2 {[%clk 0:00:20]}  h5 {[%clk 0:00:21]} 36. h3 {[%clk 0:00:19]}  Ra6 {[%clk 0:00:20]} 37. Bd5 {[%clk 0:00:19]}  Rd6 {[%clk 0:00:19]} 38. Bb3 {[%clk 0:00:19]}  Rc6 {[%clk 0:00:19]} 39. Rc2 {[%clk 0:00:18]}  Ra6 {[%clk 0:00:18]} 40. a4 {[%clk 0:00:18]}  Rb6 {[%clk 0:00:19]} 41. Bd5 {[%clk 0:00:18]}  Rd6 {[%clk 0:00:18]} 42. Bf3 {[%clk 0:00:14]}  Ra6 {[%clk 0:00:18]} 43. Ra2 {[%clk 0:00:14]}  Nxf3 {[%clk 0:00:17]} 44. Kxf3 {[%clk 0:00:15]}  Ke6 {[%clk 0:00:18]} 45. Bd2 {[%clk 0:00:13]}  Kd5 {[%clk 0:00:18]} 46. a5 {[%clk 0:00:13]}  c4 {[%clk 0:00:17]} 47. Kf4 {[%clk 0:00:12]}  c3 {[%clk 0:00:17]} 48. Be1 {[%clk 0:00:11]}  Kc4 {[%clk 0:00:17]} 49. Bxc3 {[%clk 0:00:09]}  Bxc3 {[%clk 0:00:17]} 50. Kxf5 {[%clk 0:00:09]}  Rxa5+ {[%clk 0:00:12]} 51. Rxa5 {[%clk 0:00:10]}  Bxa5 {[%clk 0:00:13]} 52. Kg5 {[%clk 0:00:10]}  h4 {[%clk 0:00:12]} 53. Kxh4 {[%clk 0:00:10]}  Kd5 {[%clk 0:00:12]} 54. Kg5 {[%clk 0:00:10]}  Ke6 {[%clk 0:00:13]} 55. Kg6 {[%clk 0:00:11]}  Ke7 {[%clk 0:00:13]} 56. g4 {[%clk 0:00:10]}  Kf8 {[%clk 0:00:13]} 57. h4 {[%clk 0:00:11]}  Kg8 {[%clk 0:00:14]} 58. g5 {[%clk 0:00:11]}  Bc3 {[%clk 0:00:14]} 59. Kf5 {[%clk 0:00:11]}  Be1 {[%clk 0:00:14]} 60. h5 {[%clk 0:00:11]}  Kh7 {[%clk 0:00:14]} 61. Kf6 {[%clk 0:00:11]}  Bc3+ {[%clk 0:00:14]} 62. Kf7 {[%clk 0:00:11]}  Bb2 {[%clk 0:00:13]} 63. h6 {[%clk 0:00:11]}  Bc3 {[%clk 0:00:11]} 64. g6+ {[%clk 0:00:11]}  Kxh6 {[%clk 0:00:11]} 65. g7 {[%clk 0:00:12]}  Bxg7 {[%clk 0:00:11]} 1/2-1/2


[Site "https://www.chess.com"]

[Event "Titled Tuesday Blitz April 26 Early 2022"]
[White "Piesik, Piotr"]
[Black "Yeremyan, Alen"]
[WhiteFideId "1136194"]
[BlackFideId "13308998"]
[WhiteElo "2190"]
[BlackElo "2158"]
[Result "0-1"]
[Round "08"]
[TimeControl "180+1"]
[Date "2022.04.26"]
[WhiteClock "0:01:31"]
[BlackClock "0:01:23"]

1. Nf3 {[%clk 0:02:57]}  Nf6 {[%clk 0:02:57]} 2. g3 {[%clk 0:02:57]}  g6 {[%clk 0:02:58]} 3. Bg2 {[%clk 0:02:57]}  Bg7 {[%clk 0:02:58]} 4. O-O {[%clk 0:02:58]}  O-O {[%clk 0:02:59]} 5. d4 {[%clk 0:02:58]}  d6 {[%clk 0:02:59]} 6. Nbd2 {[%clk 0:02:59]}  c5 {[%clk 0:03:00]} 7. dxc5 {[%clk 0:02:58]}  dxc5 {[%clk 0:03:00]} 8. e4 {[%clk 0:02:59]}  Qc7 {[%clk 0:03:00]} 9. Qe2 {[%clk 0:02:59]}  Nc6 {[%clk 0:02:59]} 10. c3 {[%clk 0:02:59]}  h6 {[%clk 0:02:58]} 11. Re1 {[%clk 0:02:57]}  Be6 {[%clk 0:02:58]} 12. Nc4 {[%clk 0:02:57]}  b5 {[%clk 0:02:55]} 13. Na3 {[%clk 0:02:54]}  a6 {[%clk 0:02:55]} 14. Bf4 {[%clk 0:02:54]}  Qb7 {[%clk 0:02:55]} 15. Ne5 {[%clk 0:02:55]}  Nh5 {[%clk 0:02:48]} 16. Nxc6 {[%clk 0:02:54]}  Nxf4 {[%clk 0:02:47]} 17. Nxe7+ {[%clk 0:02:54]}  Qxe7 {[%clk 0:02:42]} 18. gxf4 {[%clk 0:02:54]}  b4 {[%clk 0:02:42]} 19. cxb4 {[%clk 0:02:48]}  cxb4 {[%clk 0:02:43]} 20. Nc4 {[%clk 0:02:48]}  Bxc4 {[%clk 0:02:43]} 21. Qxc4 {[%clk 0:02:49]}  Bxb2 {[%clk 0:02:43]} 22. Rad1 {[%clk 0:02:48]}  Bc3 {[%clk 0:02:35]} 23. Re3 {[%clk 0:02:45]}  Qh4 {[%clk 0:02:26]} 24. e5 {[%clk 0:02:41]}  Rad8 {[%clk 0:02:22]} 25. Rd5 {[%clk 0:02:35]}  Bd2 {[%clk 0:01:58]} 26. Rg3 {[%clk 0:02:21]}  Bxf4 {[%clk 0:01:28]} 27. Rxd8 {[%clk 0:01:59]}  Rxd8 {[%clk 0:01:25]} 28. Rxg6+ {[%clk 0:01:40]}  Kh8 {[%clk 0:01:23]} 29. Rc6 {[%clk 0:01:31]}  Rd1+ {[%clk 0:01:23]} 0-1


[Site "https://www.chess.com"]

[Event "Titled Tuesday Blitz April 26 Early 2022"]
[White "Piliczewski, Bogusz"]
[Black "Mikhnenko, Alexander"]
[WhiteFideId "1104144"]
[BlackFideId "34143014"]
[WhiteElo "1896"]
[BlackElo "2117"]
[Result "0-1"]
[Round "08"]
[TimeControl "180+1"]
[Date "2022.04.26"]
[WhiteClock "0:00:03"]
[BlackClock "0:00:21"]

1. d4 {[%clk 0:03:00]}  Nf6 {[%clk 0:03:00]} 2. Nf3 {[%clk 0:03:00]}  d6 {[%clk 0:03:00]} 3. Bf4 {[%clk 0:03:00]}  b6 {[%clk 0:02:58]} 4. e3 {[%clk 0:02:59]}  Bb7 {[%clk 0:02:58]} 5. Be2 {[%clk 0:03:00]}  Nbd7 {[%clk 0:02:58]} 6. h3 {[%clk 0:02:58]}  e6 {[%clk 0:02:58]} 7. O-O {[%clk 0:02:58]}  h6 {[%clk 0:02:58]} 8. c4 {[%clk 0:02:57]}  g5 {[%clk 0:02:58]} 9. Bh2 {[%clk 0:02:56]}  g4 {[%clk 0:02:59]} 10. hxg4 {[%clk 0:02:55]}  Nxg4 {[%clk 0:03:00]} 11. Bg3 {[%clk 0:02:55]}  Rg8 {[%clk 0:03:01]} 12. Bh4 {[%clk 0:02:41]}  Be7 {[%clk 0:02:18]} 13. Bxe7 {[%clk 0:02:40]}  Qxe7 {[%clk 0:02:19]} 14. Nbd2 {[%clk 0:02:36]}  Qf6 {[%clk 0:02:14]} 15. Re1 {[%clk 0:02:36]}  Qg7 {[%clk 0:02:12]} 16. Bf1 {[%clk 0:02:25]}  h5 {[%clk 0:01:50]} 17. e4 {[%clk 0:02:25]}  O-O-O {[%clk 0:01:47]} 18. Rc1 {[%clk 0:02:16]}  h4 {[%clk 0:01:47]} 19. Nh2 {[%clk 0:02:01]}  Nxh2 {[%clk 0:00:56]} 20. Kxh2 {[%clk 0:02:00]}  Nf6 {[%clk 0:00:57]} 21. Qf3 {[%clk 0:01:44]}  Ng4+ {[%clk 0:00:51]} 22. Kh1 {[%clk 0:01:40]}  f5 {[%clk 0:00:52]} 23. d5 {[%clk 0:01:38]}  fxe4 {[%clk 0:00:51]} 24. Rxe4 {[%clk 0:01:31]}  Rdf8 {[%clk 0:00:50]} 25. Qxg4 {[%clk 0:01:11]}  Qxg4 {[%clk 0:00:49]} 26. Rxg4 {[%clk 0:01:11]}  Rxg4 {[%clk 0:00:50]} 27. f3 {[%clk 0:01:05]}  Rg6 {[%clk 0:00:50]} 28. Bd3 {[%clk 0:01:03]}  Rh6 {[%clk 0:00:49]} 29. dxe6 {[%clk 0:00:58]}  h3 {[%clk 0:00:45]} 30. Re1 {[%clk 0:00:52]}  hxg2+ {[%clk 0:00:42]} 31. Kxg2 {[%clk 0:00:51]}  Rg8+ {[%clk 0:00:42]} 32. Kf2 {[%clk 0:00:42]}  Kd8 {[%clk 0:00:37]} 33. Bf5 {[%clk 0:00:31]}  Ke7 {[%clk 0:00:33]} 34. Bg4 {[%clk 0:00:30]}  Bc8 {[%clk 0:00:32]} 35. Re4 {[%clk 0:00:15]}  Bxe6 {[%clk 0:00:30]} 36. Nb3 {[%clk 0:00:10]}  c5 {[%clk 0:00:28]} 37. Nc1 {[%clk 0:00:07]}  Kf7 {[%clk 0:00:28]} 38. Bxe6+ {[%clk 0:00:04]}  Rxe6 {[%clk 0:00:28]} 39. Rxe6 {[%clk 0:00:04]}  Kxe6 {[%clk 0:00:28]} 40. Nd3 {[%clk 0:00:03]}  a6 {[%clk 0:00:21]} 0-1


[Site "https://www.chess.com"]